fUSD/lending_fUSD_20250127
["ID","MTS","AMOUNT","RATE_DAILY","PERIOD"]
[350546360,1737958246740,-500.0,0.00010958,2]
[350546361,1737958246749,-500.0,0.00010958,2]
[350546362,1737958246758,-500.0,0.00010958,2]
[350546363,1737958246767,-165.67965829,0.00010958,2]
[350546364,1737958246776,-509.17373313,0.00010958,2]
[350546365,1737958246785,-500.0,0.00010958,2]
[350546366,1737958246794,-508.10308939,0.00010958,2]
[350546367,1737958246803,-500.0,0.00010958,2]
[350546368,1737958246812,-505.36234498,0.00010958,2]
[350546369,1737958246821,-459.3239722,0.00010958,2]
[350546370,1737958246830,-504.56198019,0.00010958,2]
[350546371,1737958246839,-500.0,0.00010958,2]
[350546372,1737958246848,-520.77400395,0.00010958,2]
[350546373,1737958246857,-500.0,0.00010958,2]
[350546374,1737958246866,-500.0,0.00010958,2]
[350546375,1737958246875,-500.0,0.00010958,2]
[350546376,1737958246884,-526.9887439,0.00010958,2]
[350546377,1737958246893,-500.0,0.00010958,2]
[350546378,1737958246902,-500.0,0.00010958,2]
[350546379,1737958246912,-421.01013405,0.00010958,2]
[350546380,1737958246920,-466.21607854,0.00010958,2]
[350546381,1737958246929,-500.0,0.00010958,2]
[350546382,1737958246939,-500.0,0.00010958,2]
[350546383,1737958247078,-500.0,0.00010958,2]
[350546384,1737958247088,-500.0,0.00010958,2]
[350546385,1737958247097,-500.0,0.00010958,2]
[350546386,1737958247106,-500.0,0.00010958,2]
[350546387,1737958247115,-362.63475658,0.00010958,2]
[350546388,1737958247123,-500.0,0.00010958,2]
[350546389,1737958247132,-500.0,0.00010958,2]
[350546390,1737958247141,-500.0,0.00010958,2]
[350546391,1737958247150,-500.0,0.00010958,2]
[350546392,1737958247159,-500.0,0.00010958,2]
[350546393,1737958247168,-510.76298244,0.00010958,2]
[350546394,1737958247177,-500.0,0.00010958,2]
[350546395,1737958247186,-500.0,0.00010958,2]
[350546396,1737958247194,-500.0,0.00010958,2]
[350546397,1737958247203,-500.0,0.00010958,2]
[350546398,1737958247212,-500.0,0.00010958,2]
[350546399,1737958247222,-500.0,0.00010958,2]
[350546400,1737958247231,-535.71203521,0.00010958,2]
[350546401,1737958247240,-609.52,0.00010958,2]
[350546402,1737958247249,-507.48884909,0.00010958,2]
[350546403,1737958247259,-503.77368741,0.00010958,2]
[350546404,1737958247268,-500.0,0.00010958,2]
[350546405,1737958247278,-500.0,0.00010958,2]
[350546406,1737958247287,-600.5823952,0.00010958,2]
[350546407,1737958247296,-500.0,0.00010958,2]
[350546408,1737958247306,-500.0,0.00010958,2]
[350546409,1737958247315,-503.83340464,0.00010958,2]
[350546410,1737958247324,-500.0,0.00010958,2]
[350546411,1737958247334,-413.79567909,0.00010958,2]
[350546412,1737958247343,-503.96455341,0.00010958,2]
[350546413,1737958247353,-500.0,0.00010958,2]
[350546414,1737958247362,-500.0,0.00010958,2]
[350546415,1737958247371,-500.0,0.00010958,2]
[350546416,1737958247380,-500.0,0.00010958,2]
[350546417,1737958247388,-500.0,0.00010958,2]
[350546418,1737958247397,-500.0,0.00010958,2]
[350546419,1737958247406,-500.0,0.00010958,2]
[350546420,1737958247415,-506.57914385,0.00010958,2]
[350546421,1737958247425,-500.0,0.00010958,2]
[350546422,1737958247435,-502.58324373,0.00010958,2]
[350546423,1737958247447,-508.06061251,0.00010958,2]
[350546424,1737958247456,-508.23073427,0.00010958,2]
[350546425,1737958247465,-460.25973046,0.00010958,2]
[350546426,1737958247474,-500.0,0.00010958,2]
[350546427,1737958247485,-500.0,0.00010958,2]
[350546428,1737958247494,-518.89435111,0.00010958,2]
[350546429,1737958247503,-500.0,0.00010958,2]
[350546430,1737958247514,-505.1306479,0.00010958,2]
[350546431,1737958247523,-589.53624138,0.00010958,2]
[350546432,1737958247533,-500.0,0.00010958,2]
[350546433,1737958247541,-500.0,0.00010958,2]
[350546434,1737958247550,-500.0,0.00010958,2]
[350546435,1737958247559,-500.0,0.00010958,2]
[350546436,1737958247568,-500.0,0.00010958,2]
[350546437,1737958247577,-417.91725074,0.00010958,2]
[350546438,1737958247586,-500.0,0.00010958,2]
[350546439,1737958247597,-500.0,0.00010958,2]
[350546440,1737958247606,-515.14966756,0.00010958,2]
[350546441,1737958247615,-512.32300338,0.00010958,2]
[350546442,1737958247624,-541.27251765,0.00010958,2]
[350546443,1737958247633,-500.0,0.00010958,2]
[350546444,1737958247642,-500.0,0.00010958,2]
[350546445,1737958247651,-500.0,0.00010958,2]
[350546446,1737958247661,-263.83655048,0.00010958,2]
[350546447,1737958247670,-509.36388199,0.00010958,2]
[350546448,1737958247680,-506.9844878,0.00010958,2]
[350546449,1737958247689,-500.0,0.00010958,2]
[350546450,1737958247699,-509.07213276,0.00010958,2]
[350546451,1737958247708,-500.0,0.00010958,2]
[350546452,1737958247717,-500.0,0.00010958,2]
[350546453,1737958247727,-500.0,0.00010958,2]
[350546454,1737958247736,-500.0,0.00010958,2]
[350546455,1737958247746,-390.66886161,0.00010958,2]
[350546456,1737958247755,-500.0,0.00010958,2]
[350546457,1737958247764,-500.0,0.00010958,2]
[350546458,1737958247774,-500.0,0.00010958,2]
[350546459,1737958247783,-509.89595628,0.00010958,2]
[350546460,1737958247792,-500.0,0.00010958,2]
[350546461,1737958247801,-500.0,0.00010958,2]
[350546462,1737958247811,-529.47893203,0.00010958,2]
[350546463,1737958247820,-499.2909364,0.00010958,2]
[350546464,1737958247829,-500.0,0.00010958,2]
[350546465,1737958247839,-500.0,0.00010958,2]
[350546466,1737958247850,-500.0,0.00010958,2]
[350546467,1737958247860,-500.0,0.00010958,2]
[350546468,1737958247870,-514.86369069,0.00010958,2]
[350546469,1737958247879,-500.0,0.00010958,2]
[350546470,1737958247888,-500.0,0.00010958,2]
[350546471,1737958247898,-500.0,0.00010958,2]
[350546472,1737958247907,-500.0,0.00010958,2]
[350546473,1737958247916,-507.54805829,0.00010958,2]
[350546474,1737958247926,-500.0,0.00010958,2]
[350546475,1737958247936,-521.67025322,0.00010958,2]
[350546476,1737958247946,-500.0,0.00010958,2]
[350546477,1737958247955,-518.17225085,0.00010958,2]
[350546478,1737958247965,-500.0,0.00010958,2]
[350546479,1737958247974,-500.0,0.00010958,2]
[350546480,1737958247984,-500.0,0.00010958,2]
[350546481,1737958247993,-500.0,0.00010958,2]
[350546482,1737958248002,-514.70092795,0.00010958,2]
[350546483,1737958248011,-291.59242635,0.00010958,2]
[350546484,1737958248021,-515.71750085,0.00010958,2]
[350546485,1737958248031,-387.9822189,0.00010958,2]
[350546486,1737958248040,-500.0,0.00010958,2]
[350546487,1737958248051,-526.66960694,0.00010958,2]
[350546488,1737958248060,-500.0,0.00010958,2]
[350546489,1737958248070,-213.90203874,0.00010958,2]
[350546490,1737958248080,-431.12076454,0.00010958,2]
[350546491,1737958248091,-500.0,0.00010958,2]
[350546492,1737958248100,-270.85150473,0.00010958,2]
[350546493,1737958248110,-517.4430447,0.00010958,2]
[350546494,1737958248119,-500.0,0.00010958,2]
[350546495,1737958248129,-500.0,0.00010958,2]
[350546496,1737958248139,-500.0,0.00010958,2]
[350546497,1737958248149,-500.0,0.00010958,2]
[350546498,1737958248158,-500.0,0.00010958,2]
[350546499,1737958248167,-500.0,0.00010958,2]
[350546500,1737958248176,-500.0,0.00010958,2]
[350546501,1737958248185,-500.0,0.00010958,2]
[350546502,1737958248194,-500.0,0.00010958,2]
[350546503,1737958248203,-500.0,0.00010958,2]
[350546504,1737958248213,-517.29295518,0.00010958,2]
[350546505,1737958248222,-519.14122334,0.00010958,2]
[350546506,1737958248231,-590.65015074,0.00010958,2]
[350546507,1737958248241,-500.0,0.00010958,2]
[350546508,1737958248251,-564.26398958,0.00010958,2]
[350546509,1737958248260,-505.14056078,0.00010958,2]
[350546510,1737958248269,-500.0,0.00010958,2]
[350546511,1737958248279,-500.0,0.00010958,2]
[350546512,1737958248288,-476.17754902,0.00010958,2]
[350546513,1737958248298,-503.86418191,0.00010958,2]
[350546514,1737958248308,-508.99473424,0.00010958,2]
[350546515,1737958248317,-500.0,0.00010958,2]
[350546516,1737958248327,-552.32942669,0.00010958,2]
[350546517,1737958248336,-500.0,0.00010958,2]
[350546518,1737958248347,-513.1016376,0.00010958,2]
[350546519,1737958248356,-512.78586191,0.00010958,2]
[350546520,1737958248365,-476.15451629,0.00010958,2]
[350546521,1737958248375,-500.0,0.00010958,2]
[350546522,1737958248385,-500.0,0.00010958,2]
[350546523,1737958248395,-500.0,0.00010958,2]
[350546524,1737958248404,-507.62778442,0.00010958,2]
[350546525,1737958248413,-500.0,0.00010958,2]
[350546526,1737958248423,-500.0,0.00010958,2]
[350546527,1737958248433,-500.0,0.00010958,2]
[350546528,1737958248447,-500.0,0.00010958,2]
[350546529,1737958248456,-500.0,0.00010958,2]
[350546530,1737958248465,-509.97084018,0.00010958,2]
[350546531,1737958248475,-288.8998172,0.00010958,2]
[350546532,1737958248484,-522.12453743,0.00010958,2]
[350546533,1737958248495,-500.0,0.00010958,2]
[350546534,1737958248505,-500.0,0.00010958,2]
[350546535,1737958248514,-500.0,0.00010958,2]
[350546536,1737958248524,-500.0,0.00010958,2]
[350546537,1737958248535,-500.0,0.00010958,2]
[350546538,1737958248544,-574.08670091,0.00010958,2]
[350546539,1737958248553,-500.0,0.00010958,2]
[350546540,1737958248563,-500.0,0.00010958,2]
[350546541,1737958248572,-500.0,0.00010958,2]
[350546542,1737958248581,-500.0,0.00010958,2]
[350546543,1737958248591,-500.0,0.00010958,2]
[350546544,1737958248601,-520.66609456,0.00010958,2]
[350546545,1737958248610,-500.0,0.00010958,2]
[350546546,1737958248620,-500.0,0.00010958,2]
[350546547,1737958248629,-498.50499359,0.00010958,2]
[350546548,1737958248639,-517.36541977,0.00010958,2]
[350546549,1737958248648,-500.0,0.00010958,2]
[350546550,1737958248657,-500.0,0.00010958,2]
[350546551,1737958248667,-513.80949168,0.00010958,2]
[350546552,1737958248677,-500.0,0.00010958,2]
[350546553,1737958248686,-500.0,0.00010958,2]
[350546554,1737958248696,-500.0,0.00010958,2]
[350546555,1737958248705,-500.0,0.00010958,2]
[350546556,1737958248714,-500.0,0.00010958,2]
[350546557,1737958248723,-500.0,0.00010958,2]
[350546558,1737958248733,-500.0,0.00010958,2]
[350546559,1737958248742,-616.63779395,0.00010958,2]
[350546560,1737958248752,-382.80262106,0.00010958,2]
[350546561,1737958248761,-544.26025193,0.00010958,2]
[350546562,1737958248771,-585.20595857,0.00010958,2]
[350546563,1737958248781,-500.0,0.00010958,2]
[350546564,1737958248790,-422.2098935,0.00010958,2]
[350546565,1737958248800,-204.72451682,0.00010958,2]
[350546566,1737958248809,-500.0,0.00010958,2]
[350546567,1737958248819,-500.0,0.00010958,2]
[350546568,1737958248829,-550.28594633,0.00010958,2]
[350546569,1737958248839,-500.0,0.00010958,2]
[350546570,1737958248848,-500.0,0.00010958,2]
[350546571,1737958248858,-500.0,0.00010958,2]
[350546572,1737958248868,-500.0,0.00010958,2]
[350546573,1737958248878,-509.51636998,0.00010958,2]
[350546574,1737958248887,-500.0,0.00010958,2]
[350546575,1737958248896,-540.23917352,0.00010958,2]
[350546576,1737958248906,-500.0,0.00010958,2]
[350546577,1737958248915,-500.0,0.00010958,2]
[350546578,1737958248925,-500.0,0.00010958,2]
[350546579,1737958248934,-519.39937857,0.00010958,2]
[350546580,1737958248944,-500.0,0.00010958,2]
[350546581,1737958248954,-556.04,0.00010958,2]
[350546582,1737958248963,-500.0,0.00010958,2]
[350546583,1737958248974,-504.65143017,0.00010958,2]
[350546584,1737958248983,-500.0,0.00010958,2]
[350546585,1737958248993,-500.0,0.00010958,2]
[350546586,1737958249002,-500.0,0.00010958,2]
[350546587,1737958249012,-525.88053567,0.00010958,2]
[350546588,1737958249021,-223.29008495,0.00010958,2]
[350546589,1737958249030,-500.0,0.00010958,2]
[350546590,1737958249040,-500.0,0.00010958,2]
[350546591,1737958249049,-500.0,0.00010958,2]
[350546592,1737958249058,-500.0,0.00010958,2]
[350546593,1737958249068,-500.0,0.00010958,2]
[350546594,1737958249077,-232.14325998,0.00010958,2]
[350546595,1737958249086,-514.25493447,0.00010958,2]
[350546596,1737958249097,-504.1091773,0.00010958,2]
[350546597,1737958249106,-500.0,0.00010958,2]
[350546598,1737958249116,-513.18834179,0.00010958,2]
[350546599,1737958249126,-500.0,0.00010958,2]
[350546600,1737958249136,-500.0,0.00010958,2]
[350546601,1737958249146,-500.0,0.00010958,2]
[350546602,1737958249155,-500.0,0.00010958,2]
[350546603,1737958249165,-500.0,0.00010958,2]
[350546604,1737958249174,-500.0,0.00010958,2]
[350546605,1737958249184,-500.0,0.00010958,2]
[350546606,1737958249193,-500.0,0.00010958,2]
[350546607,1737958249203,-500.0,0.00010958,2]
[350546608,1737958249212,-500.0,0.00010958,2]
[350546609,1737958249221,-505.28267002,0.00010958,2]
[350546610,1737958249231,-518.37569212,0.00010958,2]
[350546611,1737958249240,-500.0,0.00010958,2]
[350546612,1737958249249,-502.54449596,0.00010958,2]
[350546613,1737958249259,-507.79125311,0.00010958,2]
[350546614,1737958249268,-500.0,0.00010958,2]
[350546615,1737958249277,-500.0,0.00010958,2]
[350546616,1737958249287,-500.0,0.00010958,2]
[350546617,1737958249296,-500.0,0.00010958,2]
[350546618,1737958249306,-501.459052,0.00010958,2]
[350546619,1737958249315,-500.0,0.00010958,2]
[350546620,1737958249325,-500.0,0.00010958,2]
[350546621,1737958249334,-500.0,0.00010958,2]
[350546622,1737958249344,-500.0,0.00010958,2]
[350546623,1737958249353,-500.0,0.00010958,2]
[350546624,1737958249362,-188.69497209,0.00010958,2]
[350546625,1737958249372,-500.0,0.00010958,2]
[350546626,1737958249381,-500.0,0.00010958,2]
[350546627,1737958249390,-609.38,0.00010958,2]
[350546628,1737958249399,-299.71462804,0.00010958,2]
[350546629,1737958249408,-500.0,0.00010958,2]
[350546630,1737958249417,-505.40742111,0.00010958,2]
[350546631,1737958249427,-500.0,0.00010958,2]
[350546632,1737958249442,-500.0,0.00010958,2]
[350546633,1737958249451,-500.0,0.00010958,2]
[350546634,1737958249461,-548.37550251,0.00010958,2]
[350546635,1737958249470,-500.0,0.00010958,2]
[350546636,1737958249481,-500.0,0.00010958,2]
[350546637,1737958249490,-505.21811925,0.00010958,2]
[350546638,1737958249499,-500.0,0.00010958,2]
[350546639,1737958249509,-501.12980944,0.00010958,2]
[350546640,1737958249520,-500.0,0.00010958,2]
[350546641,1737958249529,-500.0,0.00010958,2]
[350546642,1737958249538,-249.52059796,0.00010958,2]
[350546643,1737958249547,-500.0,0.00010958,2]
[350546644,1737958249556,-500.0,0.00010958,2]
[350546645,1737958249565,-500.0,0.00010958,2]
[350546646,1737958249709,-500.0,0.00010958,2]
[350546647,1737958249719,-500.0,0.00010958,2]
[350546648,1737958249729,-507.43439517,0.00010958,2]
[350546649,1737958249739,-500.0,0.00010958,2]
[350546650,1737958249749,-500.0,0.00010958,2]
[350546651,1737958249759,-500.0,0.00010958,2]
[350546652,1737958249769,-500.0,0.00010958,2]
[350546653,1737958249778,-502.46906073,0.00010958,2]
[350546654,1737958249789,-500.0,0.00010958,2]
[350546655,1737958249799,-500.0,0.00010958,2]
[350546656,1737958249809,-649.66342617,0.00010958,2]
[350546657,1737958249819,-500.0,0.00010958,2]
[350546658,1737958249830,-500.0,0.00010958,2]
[350546659,1737958249842,-500.0,0.00010958,2]
[350546660,1737958249852,-500.0,0.00010958,2]
[350546661,1737958249862,-500.0,0.00010958,2]
[350546662,1737958249873,-500.0,0.00010958,2]
[350546663,1737958249884,-500.0,0.00010958,2]
[350546664,1737958249894,-500.0,0.00010958,2]
[350546665,1737958249904,-500.0,0.00010958,2]
[350546666,1737958249915,-640.52,0.00010958,2]
[350546667,1737958249925,-500.0,0.00010958,2]
[350546668,1737958249935,-507.65047585,0.00010958,2]
[350546669,1737958249944,-463.73580395,0.00010958,2]
[350546670,1737958249953,-533.42318216,0.00010958,2]
[350546671,1737958249963,-515.04849802,0.00010958,2]
[350546672,1737958249972,-500.0,0.00010958,2]
[350546673,1737958249981,-502.59108862,0.00010958,2]
[350546674,1737958249991,-513.17042183,0.00010958,2]
[350546675,1737958250000,-500.0,0.00010958,2]
[350546676,1737958250009,-507.3774187,0.00010958,2]
[350546677,1737958250019,-512.83371274,0.00010958,2]
[350546678,1737958250028,-500.0,0.00010958,2]
[350546679,1737958250038,-507.9210392,0.00010958,2]
[350546680,1737958250047,-500.0,0.00010958,2]
[350546681,1737958250056,-500.0,0.00010958,2]
[350546682,1737958250065,-500.0,0.00010958,2]
[350546683,1737958250075,-500.0,0.00010958,2]
[350546684,1737958250084,-517.41076028,0.00010958,2]
[350546685,1737958250094,-500.0,0.00010958,2]
[350546686,1737958250103,-508.64653903,0.00010958,2]
[350546687,1737958250112,-443.26062081,0.00010958,2]
[350546688,1737958250122,-501.58670337,0.00010958,2]
[350546689,1737958250131,-507.52249925,0.00010958,2]
[350546690,1737958250140,-507.44108086,0.00010958,2]
[350546691,1737958250149,-500.0,0.00010958,2]
[350546692,1737958250159,-500.0,0.00010958,2]
[350546693,1737958250168,-516.89127127,0.00010958,2]
[350546694,1737958250177,-629.66557638,0.00010958,2]
[350546695,1737958250187,-520.29300858,0.00010958,2]
[350546696,1737958250196,-341.11428342,0.00010958,2]
[350546697,1737958250205,-500.0,0.00010958,2]
[350546698,1737958250214,-500.0,0.00010958,2]
[350546699,1737958250223,-507.82166594,0.00010958,2]
[350546700,1737958250232,-503.62437354,0.00010958,2]
[350546701,1737958250241,-509.52118718,0.00010958,2]
[350546702,1737958250250,-500.0,0.00010958,2]
[350546703,1737958250259,-502.490812,0.00010958,2]
[350546704,1737958250268,-500.0,0.00010958,2]
[350546705,1737958250277,-500.0,0.00010958,2]
[350546706,1737958250287,-257.14512509,0.00010958,2]
[350546707,1737958250296,-500.0,0.00010958,2]
[350546708,1737958250305,-500.0,0.00010958,2]
[350546709,1737958250314,-500.0,0.00010958,2]
[350546710,1737958250323,-500.0,0.00010958,2]
[350546711,1737958250332,-530.76702183,0.00010958,2]
[350546712,1737958250342,-500.0,0.00010958,2]
[350546713,1737958250351,-500.0,0.00010958,2]
[350546714,1737958250360,-500.0,0.00010958,2]
[350546715,1737958250369,-500.0,0.00010958,2]
[350546716,1737958250378,-330.53953458,0.00010958,2]
[350546717,1737958250387,-500.0,0.00010958,2]
[350546718,1737958250396,-231.80940946,0.00010958,2]
[350546719,1737958250406,-500.0,0.00010958,2]
[350546720,1737958250414,-500.0,0.00010958,2]
[350546721,1737958250424,-500.0,0.00010958,2]
[350546722,1737958250433,-500.0,0.00010958,2]
[350546723,1737958250446,-449.07289162,0.00010958,2]
[350546724,1737958250456,-500.0,0.00010958,2]
[350546725,1737958250465,-500.0,0.00010958,2]
[350546726,1737958250475,-457.55822823,0.00010958,2]
[350546727,1737958250484,-505.91551291,0.00010958,2]
[350546728,1737958250493,-507.41646479,0.00010958,2]
[350546729,1737958250502,-500.0,0.00010958,2]
[350546730,1737958250512,-500.0,0.00010958,2]
[350546731,1737958250522,-500.0,0.00010958,2]
[350546732,1737958250532,-405.11367254,0.00010958,2]
[350546733,1737958250542,-500.0,0.00010958,2]
[350546734,1737958250552,-326.40804759,0.00010958,2]
[350546735,1737958250562,-500.0,0.00010958,2]
[350546736,1737958250571,-500.0,0.00010958,2]
[350546737,1737958250581,-500.0,0.00010958,2]
[350546738,1737958250590,-500.0,0.00010958,2]
[350546739,1737958250600,-500.0,0.00010958,2]
[350546740,1737958250610,-500.0,0.00010958,2]
[350546741,1737958250619,-500.0,0.00010958,2]
[350546742,1737958250629,-500.0,0.00010958,2]
[350546743,1737958250639,-500.0,0.00010958,2]
[350546744,1737958250648,-363.19,0.00010958,2]
[350546745,1737958250657,-500.0,0.00010958,2]
[350546746,1737958250667,-500.0,0.00010958,2]
[350546747,1737958250676,-500.0,0.00010958,2]
[350546748,1737958250686,-500.0,0.00010958,2]
[350546749,1737958250695,-500.0,0.00010958,2]
[350546750,1737958250705,-506.70280336,0.00010958,2]
[350546751,1737958250714,-500.0,0.00010958,2]
[350546752,1737958250724,-366.70334212,0.00010958,2]
[350546753,1737958250733,-539.08922054,0.00010958,2]
[350546754,1737958250743,-500.0,0.00010958,2]
[350546755,1737958250753,-523.70105177,0.00010958,2]
[350546756,1737958250762,-500.0,0.00010958,2]
[350546757,1737958250771,-403.83905106,0.00010958,2]
[350546758,1737958250780,-503.33540829,0.00010958,2]
[350546759,1737958250790,-500.0,0.00010958,2]
[350546760,1737958250799,-500.0,0.00010958,2]
[350546761,1737958250809,-500.0,0.00010958,2]
[350546762,1737958250818,-289.28567345,0.00010958,2]
[350546763,1737958250827,-500.0,0.00010958,2]
[350546764,1737958250837,-500.0,0.00010958,2]
[350546765,1737958250847,-500.0,0.00010958,2]
[350546766,1737958250856,-500.0,0.00010958,2]
[350546767,1737958250865,-500.0,0.00010958,2]
[350546768,1737958250874,-500.0,0.00010958,2]
[350546769,1737958250884,-500.0,0.00010958,2]
[350546770,1737958250893,-500.0,0.00010958,2]
[350546771,1737958250902,-500.0,0.00010958,2]
[350546772,1737958250912,-500.0,0.00010958,2]
[350546773,1737958250921,-511.13138855,0.00010958,2]
[350546774,1737958250930,-225.79,0.00010958,2]
[350546775,1737958250940,-504.45973554,0.00010958,2]
[350546776,1737958250949,-504.30466613,0.00010958,2]
[350546777,1737958250958,-500.0,0.00010958,2]
[350546778,1737958250968,-517.5939595,0.00010958,2]
[350546779,1737958250977,-508.65193725,0.00010958,2]
[350546780,1737958250986,-500.0,0.00010958,2]
[350546781,1737958250995,-500.0,0.00010958,2]
[350546782,1737958251004,-500.0,0.00010958,2]
[350546783,1737958251013,-500.0,0.00010958,2]
[350546784,1737958251023,-500.0,0.00010958,2]
[350546785,1737958251032,-512.80025349,0.00010958,2]
[350546786,1737958251041,-529.82320849,0.00010958,2]
[350546787,1737958251049,-500.0,0.00010958,2]
[350546788,1737958251058,-500.0,0.00010958,2]
[350546789,1737958251067,-500.0,0.00010958,2]
[350546790,1737958251076,-514.12549594,0.00010958,2]
[350546791,1737958251085,-500.0,0.00010958,2]
[350546792,1737958251094,-500.0,0.00010958,2]
[350546793,1737958251103,-505.21585727,0.00010958,2]
[350546794,1737958251112,-502.73252386,0.00010958,2]
[350546795,1737958251121,-501.54246743,0.00010958,2]
[350546796,1737958251130,-500.0,0.00010958,2]
[350546797,1737958251139,-504.38521373,0.00010958,2]
[350546798,1737958251148,-503.83726162,0.00010958,2]
[350546799,1737958251157,-500.0,0.00010958,2]
[350546800,1737958251167,-500.0,0.00010958,2]
[350546801,1737958251176,-607.44911125,0.00010958,2]
[350546802,1737958251185,-500.0,0.00010958,2]
[350546803,1737958251194,-543.33807242,0.00010958,2]
[350546804,1737958251203,-500.0,0.00010958,2]
[350546805,1737958251212,-520.53421854,0.00010958,2]
[350546806,1737958251221,-502.88005493,0.00010958,2]
[350546807,1737958251230,-500.0,0.00010958,2]
[350546808,1737958251239,-500.0,0.00010958,2]
[350546809,1737958251248,-500.0,0.00010958,2]
[350546810,1737958251256,-448.80883978,0.00010958,2]
[350546811,1737958251265,-500.0,0.00010958,2]
[350546812,1737958251275,-500.0,0.00010958,2]
[350546813,1737958251284,-476.75100941,0.00010958,2]
[350546814,1737958251293,-522.10932581,0.00010958,2]
[350546815,1737958251302,-500.0,0.00010958,2]
[350546816,1737958251311,-508.75987513,0.00010958,2]
[350546817,1737958251321,-500.0,0.00010958,2]
[350546818,1737958251330,-500.0,0.00010958,2]
[350546819,1737958251339,-500.0,0.00010958,2]
[350546820,1737958251349,-257.37,0.00010958,2]
[350546821,1737958251358,-504.47536195,0.00010958,2]
[350546822,1737958251368,-500.0,0.00010958,2]
[350546823,1737958251378,-500.0,0.00010958,2]
[350546824,1737958251387,-500.0,0.00010958,2]
[350546825,1737958251396,-500.0,0.00010958,2]
[350546826,1737958251405,-500.0,0.00010958,2]
[350546827,1737958251414,-518.66627146,0.00010958,2]
[350546828,1737958251423,-500.0,0.00010958,2]
[350546829,1737958251433,-500.0,0.00010958,2]
[350546830,1737958251445,-500.20166481,0.00010958,2]
[350546831,1737958251454,-503.11292533,0.00010958,2]
[350546832,1737958251463,-500.0,0.00010958,2]
[350546833,1737958251472,-323.05313217,0.00010958,2]
[350546834,1737958251480,-500.0,0.00010958,2]
[350546835,1737958251490,-500.0,0.00010958,2]
[350546836,1737958251499,-502.48394063,0.00010958,2]
[350546837,1737958251507,-518.33698294,0.00010958,2]
[350546838,1737958251516,-500.0,0.00010958,2]
[350546839,1737958251526,-500.0,0.00010958,2]
[350546840,1737958251536,-500.0,0.00010958,2]
[350546841,1737958251544,-500.0,0.00010958,2]
[350546842,1737958251553,-503.0283756,0.00010958,2]
[350546843,1737958251562,-500.0,0.00010958,2]
[350546844,1737958251570,-500.0,0.00010958,2]
[350546845,1737958251579,-500.0,0.00010958,2]
[350546846,1737958251587,-180.9201571,0.00010958,2]
[350546847,1737958251596,-500.0,0.00010958,2]
[350546848,1737958251605,-500.0,0.00010958,2]
[350546849,1737958251615,-507.56569054,0.00010958,2]
[350546850,1737958251624,-505.12928246,0.00010958,2]
[350546851,1737958251633,-500.0,0.00010958,2]
[350546852,1737958251642,-500.0,0.00010958,2]
[350546853,1737958251651,-500.0,0.00010958,2]
[350546854,1737958251660,-500.0,0.00010958,2]
[350546855,1737958251669,-500.0,0.00010958,2]
[350546856,1737958251678,-500.0,0.00010958,2]
[350546857,1737958251687,-500.0,0.00010958,2]
[350546858,1737958251696,-500.0,0.00010958,2]
[350546859,1737958251705,-500.0,0.00010958,2]